[Event "2nd FIDE WCC Rapid G10"]
[Site "Minsk"]
[Date "2018.06.23"]
[Round "6"]
[White "Khamdamova, Afruza"]
[Black "Kleymenova, Valeria"]
[Result "1-0"]
[ECO "C15"]
[WhiteElo "1383"]
[BlackElo "1669"]
[Annotator "NA"]
[PlyCount "131"]
[EventDate "2018.06.22"]
[EventType "rapid"]
[EventCountry "BLR"]
[SourceTitle "playchess.com"]
[Source "ChessBase"]
[SourceQuality "1"]
[TimeControl "600+5"]

1. e4 {[%emt 0:00:00]} e6 {[%emt 0:00:01]} 2. d4 {[%emt 0:00:00]} d5 {[%emt 0:00:02]} 3. Nc3 {[%emt 0:00:00]} Bb4 {[%emt 0:00:05]} 4. exd5 {[%emt 0:00:01]} exd5 {[%emt 0:00:01]} 5. Nf3 {[%emt 0:00:01]} Nf6 {[%emt 0:00:03]} 6. Bd3 {[%emt 0:00:02]} O-O {[%emt 0:00:06]} 7. O-O {[%emt 0:00:02]} Bg4 {[%emt 0:00:10]} 8. Bg5 {[%emt 0:00:08]} c6 {[%emt 0:00:09]} 9. h3 {[%emt 0:00:06]} Bh5 {[%emt 0:00:02]} 10. a3 {[%emt 0:00:01]} Bd6 {[%emt 0:00:04]} 11. Be2 {[%emt 0:00:27]} Nbd7 {[%emt 0:00:13]} 12. Ne5 {[%emt 0:00:06]} Bxe2 {[%emt 0:00:17]} 13. Qxe2 {[%emt 0:00:02]} Re8 {[%emt 0:00:10]} 14. f4 {[%emt 0:00:01]} Qb6 {[%emt 0:00:36]} 15. Qf2 {[%emt 0:00:20]} Qxb2 {[%emt 0:01:20]} 16. Qf3 {[%emt 0:03:57]} Qb6 {[%emt 0:00:50]} 17. Qf2 {[%emt 0:00:19]} h6 {[%emt 0:01:52]} 18. Bh4 {[%emt 0:00:22]} a6 {[%emt 0:01:08]} 19. Rab1 {[%emt 0:00:05]} Qa7 {[%emt 0:00:45]} 20. Nxd7 {[%emt 0:01:23]} Nxd7 {[%emt 0:00:05]} 21. Ne2 {[%emt 0:00:02]} Be7 {[%emt 0:01:34]} 22. Bxe7 {[%emt 0:01:07]} Rxe7 {[%emt 0:00:03]} 23. Ng3 {[%emt 0:00:01]} Kh7 {[%emt 0:00:53]} 24. Nf5 {[%emt 0:00:02]} Re6 {[%emt 0:00:12]} 25. Rbe1 {[%emt 0:00:23]} Rae8 {[%emt 0:00:09]} 26. Rd1 {[%emt 0:01:34]} Nf6 {[%emt 0:00:18]} 27. Qg3 {[%emt 0:00:06]} g6 {[%emt 0:00:05]} 28. Nh4 {[%emt 0:00:10]} Ne4 {[%emt 0:00:03]} 29. Qf3 {[%emt 0:00:09]} Nf6 {[%emt 0:00:16]} 30. f5 {[%emt 0:00:02]} gxf5 {[%emt 0:00:30]} 31. Qxf5+ {[%emt 0:00:01]} Kg7 {[%emt 0:00:06]} 32. Rd3 {[%emt 0:00:07]} Qb8 {[%emt 0:00:15]} 33. Qf2 {[%emt 0:00:15]} Kh8 {[%emt 0:00:08]} 34. Nf5 {[%emt 0:00:27]} Re2 {[%emt 0:00:07]} 35. Qh4 {[%emt 0:00:02]} Rxg2+ {[%emt 0:00:10]} 36. Kxg2 {[%emt 0:00:02]} Rg8+ {[%emt 0:00:02]} 37. Kh1 {[%emt 0:00:13]} Rg6 {[%emt 0:00:04]} 38. Nxh6 {[%emt 0:00:07]} Ne4 {[%emt 0:00:09]} 39. Nxf7+ {[%emt 0:00:03]} Kg7 {[%emt 0:00:01]} 40. Qh8+ {[%emt 0:00:03]} Qxh8 {[%emt 0:00:01]} 41. Nxh8 {[%emt 0:00:04]} Kxh8 {[%emt 0:00:02]} 42. Rf7 {[%emt 0:00:06]} Rg7 {[%emt 0:00:02]} 43. Rf8+ {[%emt 0:00:02]} Kh7 {[%emt 0:00:01]} 44. Rb3 {[%emt 0:00:09]} Nd6 {[%emt 0:00:11]} 45. Rd8 {[%emt 0:00:05]} Nb5 {[%emt 0:00:08]} 46. c3 {[%emt 0:00:05]} Rg3 {[%emt 0:00:04]} 47. Rd7+ {[%emt 0:00:02]} Rg7 {[%emt 0:00:02]} 48. Rxg7+ {[%emt 0:00:02]} Kxg7 {[%emt 0:00:00]} 49. a4 {[%emt 0:00:01]} Nd6 {[%emt 0:00:01]} 50. Kg2 {[%emt 0:00:04]} b5 {[%emt 0:00:01]} 51. axb5 {[%emt 0:00:01]} axb5 {[%emt 0:00:01]} 52. Kf3 {[%emt 0:00:02]} Nc4 {[%emt 0:00:04]} 53. Kf4 {[%emt 0:00:08]} Kf6 {[%emt 0:00:00]} 54. Rb1 {[%emt 0:00:05]} Nd2 {[%emt 0:00:05]} 55. Ra1 {[%emt 0:00:02]} Ke6 {[%emt 0:00:10]} 56. h4 {[%emt 0:00:02]} Nb3 {[%emt 0:00:03]} 57. Ra6 {[%emt 0:00:01]} Kd6 {[%emt 0:00:01]} 58. h5 {[%emt 0:00:02]} Nd2 {[%emt 0:00:02]} 59. h6 {[%emt 0:00:01]} Ne4 {[%emt 0:00:01]} 60. h7 {[%emt 0:00:02]} Nf6 {[%emt 0:00:01]} 61. h8=Q {[%emt 0:00:03]} Nd7 {[%emt 0:00:02]} 62. Qh6+ {[%emt 0:00:04]} Ke7 {[%emt 0:00:02]} 63. Ra7 {[%emt 0:00:02]} Ke8 {[%emt 0:00:02]} 64. Qe6+ {[%emt 0:00:02]} Kf8 {[%emt 0:00:01]} 65. Rxd7 {[%emt 0:00:03]} b4 {[%emt 0:00:01]} 66. Qf7# {[%emt 0:00:02]} 1-0

[Event "2nd FIDE WCC Rapid G10"]
[Site "Minsk"]
[Date "2018.06.23"]
[Round "6"]
[White "Novikova, Daria"]
[Black "Szczotka, Klara"]
[Result "1-0"]
[ECO "A80"]
[WhiteElo "1341"]
[BlackElo "1465"]
[Annotator "NA"]
[PlyCount "97"]
[EventDate "2018.06.22"]
[EventType "rapid"]
[EventCountry "BLR"]
[SourceTitle "playchess.com"]
[Source "ChessBase"]
[SourceQuality "1"]
[TimeControl "600+5"]

1. d4 {[%emt 0:00:00]} f5 {[%emt 0:00:02]} 2. Nf3 {[%emt 0:00:00]} Nf6 {[%emt 0:00:02]} 3. Bg5 {[%emt 0:00:19]} g6 {[%emt 0:00:18]} 4. c4 {[%emt 0:00:08]} Bg7 {[%emt 0:00:01]} 5. Nc3 {[%emt 0:00:02]} O-O {[%emt 0:00:02]} 6. Bf4 {[%emt 0:00:06]} d6 {[%emt 0:00:05]} 7. e3 {[%emt 0:00:02]} e6 {[%emt 0:00:12]} 8. Be2 {[%emt 0:00:10]} Qe7 {[%emt 0:00:02]} 9. O-O {[%emt 0:00:13]} Nbd7 {[%emt 0:00:02]} 10. h3 {[%emt 0:00:36]} b6 {[%emt 0:00:02]} 11. Qb3 {[%emt 0:00:13]} Kh8 {[%emt 0:01:09]} 12. Qa3 {[%emt 0:01:34]} c5 {[%emt 0:02:22]} 13. Nb5 {[%emt 0:00:46]} e5 {[%emt 0:00:31]} 14. Bh2 {[%emt 0:00:24]} Bb7 {[%emt 0:03:00]} 15. Nxd6 {[%emt 0:00:56]} Bxf3 {[%emt 0:01:06]} 16. Bxf3 {[%emt 0:00:02]} e4 {[%emt 0:00:02]} 17. Be2 {[%emt 0:00:11]} cxd4 {[%emt 0:00:29]} 18. exd4 {[%emt 0:00:03]} Ne8 {[%emt 0:00:28]} 19. Nxe8 {[%emt 0:00:25]} Qxa3 {[%emt 0:00:07]} 20. bxa3 {[%emt 0:00:04]} Bxd4 {[%emt 0:00:36]} 21. Rad1 {[%emt 0:00:08]} Rfxe8 {[%emt 0:00:16]} 22. Rxd4 {[%emt 0:00:01]} Nc5 {[%emt 0:00:09]} 23. Rfd1 {[%emt 0:00:21]} e3 {[%emt 0:00:08]} 24. Bf3 {[%emt 0:00:24]} Rac8 {[%emt 0:00:06]} 25. Bd6 {[%emt 0:01:01]} exf2+ {[%emt 0:00:33]} 26. Kxf2 Ne6 {[%emt 0:00:02]} 27. Be5+ {[%emt 0:00:09]} Kg8 {[%emt 0:00:03]} 28. Bd5 {[%emt 0:00:05]} Kf8 {[%emt 0:00:04]} 29. Bd6+ {[%emt 0:00:18]} Kg7 {[%emt 0:00:09]} 30. Bxe6 {[%emt 0:00:26]} Rxe6 {[%emt 0:00:01]} 31. Bb4 {[%emt 0:00:04]} a5 {[%emt 0:00:10]} 32. Bc3 {[%emt 0:00:02]} Kf7 {[%emt 0:00:09]} 33. Rd7+ {[%emt 0:00:07]} Kg8 {[%emt 0:00:09]} 34. Rd8+ {[%emt 0:00:12]} Re8 {[%emt 0:00:07]} 35. Rxc8 {[%emt 0:00:08]} Rxc8 {[%emt 0:00:01]} 36. Rd4 {[%emt 0:00:06]} Kf7 {[%emt 0:00:05]} 37. Ke3 {[%emt 0:00:05]} Ke6 {[%emt 0:00:09]} 38. Kd3 {[%emt 0:00:08]} Rc6 {[%emt 0:00:05]} 39. Bd2 {[%emt 0:00:10]} Rc5 {[%emt 0:00:06]} 40. Be3 {[%emt 0:00:12]} Rc6 {[%emt 0:00:02]} 41. Rh4 {[%emt 0:00:06]} Rc7 {[%emt 0:00:03]} 42. Bxb6 {[%emt 0:00:05]} Rd7+ {[%emt 0:00:02]} 43. Kc3 {[%emt 0:00:04]} a4 {[%emt 0:00:04]} 44. c5 {[%emt 0:00:08]} Rb7 {[%emt 0:00:05]} 45. Rxa4 {[%emt 0:00:03]} Kd5 {[%emt 0:00:06]} 46. Ra7 {[%emt 0:00:05]} Rb8 {[%emt 0:00:01]} 47. Rxh7 {[%emt 0:00:03]} Ke5 {[%emt 0:00:02]} 48. Bc7+ {[%emt 0:00:03]} Kd5 {[%emt 0:00:03]} 49. Bxb8 {[%emt 0:00:03]} 1-0

[Event "2nd FIDE WCC Rapid G10"]
[Site "Minsk"]
[Date "2018.06.23"]
[Round "6"]
[White "Ho, Ngoc Vy"]
[Black "Zhapova, Yana"]
[Result "0-1"]
[ECO "D45"]
[WhiteElo "1275"]
[BlackElo "1597"]
[Annotator "NA"]
[PlyCount "93"]
[EventDate "2018.06.22"]
[EventType "rapid"]
[EventCountry "BLR"]
[SourceTitle "playchess.com"]
[Source "ChessBase"]
[SourceQuality "1"]
[TimeControl "600+5"]

1. d4 {[%emt 0:00:00]} d5 {[%emt 0:00:00]} 2. c4 {[%emt 0:00:00]} e6 {[%emt 0:00:02]} 3. Nf3 {[%emt 0:00:00]} c6 {[%emt 0:00:00]} 4. e3 {[%emt 0:00:00]} Nf6 {[%emt 0:00:05]} 5. Nc3 {[%emt 0:00:03]} Nbd7 {[%emt 0:00:02]} 6. Qc2 {[%emt 0:00:02]} Be7 {[%emt 0:00:12]} 7. Bd3 {[%emt 0:00:05]} dxc4 {[%emt 0:00:07]} 8. Bxc4 {[%emt 0:00:04]} b5 9. Bd3 {[%emt 0:00:04]} Bb7 {[%emt 0:00:05]} 10. O-O {[%emt 0:00:04]} O-O {[%emt 0:00:09]} 11. e4 {[%emt 0:00:01]} b4 {[%emt 0:01:36]} 12. Ne2 {[%emt 0:00:13]} h6 {[%emt 0:00:08]} 13. Nf4 {[%emt 0:00:11]} c5 {[%emt 0:00:10]} 14. Qe2 {[%emt 0:00:13]} cxd4 {[%emt 0:00:47]} 15. Nxd4 {[%emt 0:00:03]} Ne5 {[%emt 0:00:09]} 16. Nc2 {[%emt 0:01:30]} Nxd3 17. Nxd3 {[%emt 0:00:03]} Bxe4 {[%emt 0:01:12]} 18. Ndxb4 {[%emt 0:00:06]} a5 {[%emt 0:00:54]} 19. Rd1 {[%emt 0:00:27]} Qc7 {[%emt 0:00:23]} 20. Nd3 {[%emt 0:00:07]} Rac8 {[%emt 0:00:18]} 21. Nd4 {[%emt 0:00:14]} e5 {[%emt 0:00:33]} 22. Nb5 {[%emt 0:00:14]} Qb8 {[%emt 0:00:51]} 23. Nc3 {[%emt 0:00:06]} Bxd3 {[%emt 0:00:04]} 24. Rxd3 {[%emt 0:00:03]} Rfd8 {[%emt 0:00:27]} 25. Re3 {[%emt 0:00:42]} Bd6 {[%emt 0:00:33]} 26. h3 {[%emt 0:00:33]} Rc5 {[%emt 0:00:24]} 27. Ne4 {[%emt 0:00:13]} Nxe4 {[%emt 0:00:22]} 28. Rxe4 {[%emt 0:00:02]} Rdc8 {[%emt 0:00:08]} 29. Qg4 {[%emt 0:00:24]} Rxc1+ {[%emt 0:00:03]} 30. Rxc1 {[%emt 0:00:08]} Rxc1+ {[%emt 0:00:01]} 31. Kh2 {[%emt 0:00:04]} Qc8 {[%emt 0:00:04]} 32. Qf3 {[%emt 0:00:49]} f5 {[%emt 0:00:18]} 33. Qb3+ {[%emt 0:00:08]} Kh8 {[%emt 0:00:01]} 34. Re3 {[%emt 0:00:19]} e4+ {[%emt 0:00:17]} 35. g3 {[%emt 0:00:03]} Qc2 {[%emt 0:00:05]} 36. Qxc2 {[%emt 0:00:04]} Rxc2 {[%emt 0:00:01]} 37. Kg2 {[%emt 0:00:01]} Rxb2 {[%emt 0:00:01]} 38. g4 {[%emt 0:00:15]} g6 {[%emt 0:00:05]} 39. Rc3 {[%emt 0:00:14]} Kg7 {[%emt 0:00:20]} 40. Rc6 {[%emt 0:00:05]} Be7 {[%emt 0:00:14]} 41. Re6 {[%emt 0:00:17]} Bc5 {[%emt 0:00:07]} 42. Rc6 {[%emt 0:00:11]} Rxf2+ {[%emt 0:00:09]} 43. Kg1 {[%emt 0:00:09]} Rc2+ {[%emt 0:00:04]} 44. Kf1 {[%emt 0:00:03]} e3 {[%emt 0:00:06]} 45. Rc7+ {[%emt 0:00:11]} Kf6 {[%emt 0:00:02]} 46. gxf5 e2+ 47. Ke1 0-1

[Event "2nd FIDE WCC Rapid G10"]
[Site "Minsk"]
[Date "2018.06.23"]
[Round "6"]
[White "Borovikova, Marija"]
[Black "Mutina, Sofia"]
[Result "1-0"]
[ECO "C01"]
[WhiteElo "1172"]
[BlackElo "1341"]
[Annotator "NA"]
[PlyCount "141"]
[EventDate "2018.06.22"]
[EventType "rapid"]
[EventCountry "BLR"]
[SourceTitle "playchess.com"]
[Source "ChessBase"]
[SourceQuality "1"]
[TimeControl "600+5"]

1. e4 {[%emt 0:00:00]} e6 {[%emt 0:00:00]} 2. d4 {[%emt 0:00:00]} d5 {[%emt 0:00:02]} 3. exd5 {[%emt 0:00:00]} exd5 {[%emt 0:00:01]} 4. Nf3 {[%emt 0:00:00]} Bd6 {[%emt 0:00:02]} 5. Bd3 {[%emt 0:00:01]} Ne7 {[%emt 0:00:01]} 6. O-O {[%emt 0:00:04]} O-O {[%emt 0:00:02]} 7. c3 {[%emt 0:00:03]} Be6 {[%emt 0:00:07]} 8. Ng5 {[%emt 0:00:09]} Bf5 {[%emt 0:00:05]} 9. Bxf5 {[%emt 0:00:10]} Nxf5 {[%emt 0:00:01]} 10. Qc2 {[%emt 0:00:25]} g6 {[%emt 0:00:13]} 11. Nf3 {[%emt 0:00:36]} Nd7 {[%emt 0:00:08]} 12. Qb3 {[%emt 0:00:13]} Nb6 {[%emt 0:00:03]} 13. Nbd2 {[%emt 0:00:09]} Re8 {[%emt 0:01:07]} 14. a4 {[%emt 0:00:15]} a5 {[%emt 0:00:01]} 15. c4 {[%emt 0:00:17]} dxc4 {[%emt 0:00:27]} 16. Nxc4 {[%emt 0:00:01]} Nxc4 {[%emt 0:00:02]} 17. Qxc4 {[%emt 0:00:02]} Be7 {[%emt 0:00:44]} 18. Bf4 {[%emt 0:00:54]} c6 {[%emt 0:02:49]} 19. Rad1 {[%emt 0:00:34]} Qd5 {[%emt 0:00:24]} 20. Qxd5 {[%emt 0:00:07]} cxd5 {[%emt 0:00:01]} 21. Rc1 {[%emt 0:00:14]} Rac8 {[%emt 0:00:12]} 22. Bc7 {[%emt 0:00:05]} Bb4 {[%emt 0:00:06]} 23. Be5 {[%emt 0:00:26]} Ne7 {[%emt 0:00:31]} 24. Bf4 {[%emt 0:01:40]} Nc6 {[%emt 0:00:06]} 25. Be3 {[%emt 0:00:10]} f5 {[%emt 0:00:05]} 26. Rc2 {[%emt 0:00:32]} Rcd8 {[%emt 0:00:22]} 27. Rfc1 {[%emt 0:00:26]} Re4 {[%emt 0:00:07]} 28. Ng5 {[%emt 0:00:23]} Nxd4 {[%emt 0:01:01]} 29. Bxd4 {[%emt 0:00:15]} Rxd4 {[%emt 0:00:01]} 30. Ne6 {[%emt 0:00:04]} Bd2 {[%emt 0:02:02]} 31. Nxd4 {[%emt 0:00:14]} Bxc1 {[%emt 0:00:02]} 32. Rxc1 {[%emt 0:00:01]} Re8 {[%emt 0:00:05]} 33. f3 {[%emt 0:00:10]} Re7 {[%emt 0:00:15]} 34. Kf2 {[%emt 0:00:08]} Kf7 {[%emt 0:00:01]} 35. Nb3 {[%emt 0:00:08]} b6 {[%emt 0:00:07]} 36. Rc6 {[%emt 0:00:04]} Rb7 {[%emt 0:00:01]} 37. Rd6 {[%emt 0:00:04]} Rc7 {[%emt 0:00:01]} 38. Rxd5 {[%emt 0:00:04]} Rc2+ {[%emt 0:00:01]} 39. Rd2 {[%emt 0:00:02]} Rc6 {[%emt 0:00:02]} 40. Rd7+ {[%emt 0:00:07]} Kg8 {[%emt 0:00:01]} 41. Ke3 {[%emt 0:00:08]} Rc2 {[%emt 0:00:03]} 42. Rd2 Rc6 43. Nd4 {[%emt 0:00:11]} Rc4 {[%emt 0:00:05]} 44. b3 {[%emt 0:00:03]} Rc8 {[%emt 0:00:06]} 45. Nb5 {[%emt 0:00:03]} Re8+ {[%emt 0:00:05]} 46. Kf2 {[%emt 0:00:01]} Rc8 {[%emt 0:00:05]} 47. Rd6 {[%emt 0:00:16]} Rc2+ {[%emt 0:00:03]} 48. Kg3 {[%emt 0:00:01]} Rb2 {[%emt 0:00:01]} 49. Rxb6 {[%emt 0:00:02]} Rxb3 {[%emt 0:00:01]} 50. Ra6 {[%emt 0:00:06]} Rb4 {[%emt 0:00:06]} 51. Rxa5 {[%emt 0:00:01]} f4+ {[%emt 0:00:01]} 52. Kg4 {[%emt 0:00:03]} h5+ {[%emt 0:00:06]} 53. Kg5 {[%emt 0:00:15]} Rb2 {[%emt 0:00:07]} 54. Kxf4 {[%emt 0:00:06]} Rxg2 {[%emt 0:00:02]} 55. h3 {[%emt 0:00:07]} g5+ {[%emt 0:00:04]} 56. Kf5 {[%emt 0:00:06]} Rg3 {[%emt 0:00:03]} 57. Nd4 {[%emt 0:00:19]} Rxh3 {[%emt 0:00:03]} 58. Kxg5 {[%emt 0:00:03]} h4 {[%emt 0:00:03]} 59. Kg4 {[%emt 0:00:02]} Rh1 {[%emt 0:00:02]} 60. Rh5 {[%emt 0:00:04]} Ra1 {[%emt 0:00:09]} 61. a5 {[%emt 0:00:12]} Kf7 {[%emt 0:00:02]} 62. Kxh4 {[%emt 0:00:04]} Ra4 {[%emt 0:00:00]} 63. Rd5 {[%emt 0:00:02]} Ke7 {[%emt 0:00:05]} 64. f4 {[%emt 0:00:11]} Kf6 {[%emt 0:00:03]} 65. f5 {[%emt 0:00:10]} Ke7 {[%emt 0:00:07]} 66. Kg5 {[%emt 0:00:03]} Kf7 {[%emt 0:00:01]} 67. f6 {[%emt 0:00:08]} Ra3 {[%emt 0:00:05]} 68. Rd7+ {[%emt 0:00:04]} Ke8 {[%emt 0:00:03]} 69. Re7+ {[%emt 0:00:05]} Kf8 {[%emt 0:00:01]} 70. Ne6+ {[%emt 0:00:05]} Kg8 {[%emt 0:00:01]} 71. f7+ {[%emt 0:00:10]} 1-0

[Event "2nd FIDE WCC Rapid G10"]
[Site "Minsk"]
[Date "2018.06.23"]
[Round "7"]
[White "Shvedova, Alexandra"]
[Black "Khamdamova, Afruza"]
[Result "0-1"]
[ECO "D55"]
[WhiteElo "1758"]
[BlackElo "1383"]
[Annotator "NA"]
[PlyCount "128"]
[EventDate "2018.06.22"]
[EventType "rapid"]
[EventCountry "BLR"]
[SourceTitle "playchess.com"]
[Source "ChessBase"]
[SourceQuality "1"]
[TimeControl "600+5"]

1. d4 {[%emt 0:00:00]} Nf6 {[%emt 0:00:01]} 2. c4 {[%emt 0:00:00]} e6 {[%emt 0:00:01]} 3. Nc3 {[%emt 0:00:03]} d5 {[%emt 0:00:01]} 4. Bg5 {[%emt 0:00:03]} Be7 {[%emt 0:00:01]} 5. Nf3 {[%emt 0:00:02]} O-O {[%emt 0:00:03]} 6. e3 {[%emt 0:00:02]} b6 {[%emt 0:00:01]} 7. Bd3 {[%emt 0:00:03]} Bb7 {[%emt 0:00:01]} 8. O-O {[%emt 0:00:04]} Nbd7 {[%emt 0:00:02]} 9. Rc1 {[%emt 0:00:06]} Rc8 {[%emt 0:00:01]} 10. Re1 {[%emt 0:00:16]} c5 {[%emt 0:00:02]} 11. Qe2 {[%emt 0:00:21]} cxd4 {[%emt 0:00:08]} 12. Nxd4 {[%emt 0:00:05]} Ne5 {[%emt 0:00:36]} 13. Bxf6 {[%emt 0:00:43]} Bxf6 {[%emt 0:00:04]} 14. cxd5 {[%emt 0:00:06]} Nxd3 {[%emt 0:00:09]} 15. Qxd3 {[%emt 0:00:02]} exd5 {[%emt 0:00:01]} 16. Red1 {[%emt 0:00:09]} Qd7 {[%emt 0:00:17]} 17. Nf3 {[%emt 0:01:16]} Rfd8 {[%emt 0:00:05]} 18. Rc2 {[%emt 0:00:19]} Qg4 {[%emt 0:00:39]} 19. h3 {[%emt 0:00:13]} Qc4 {[%emt 0:01:35]} 20. Qxc4 {[%emt 0:00:50]} dxc4 {[%emt 0:00:02]} 21. Nd4 {[%emt 0:00:48]} Rc7 {[%emt 0:00:52]} 22. Ncb5 {[%emt 0:01:08]} Rc5 {[%emt 0:00:20]} 23. Rdc1 {[%emt 0:00:29]} a6 {[%emt 0:00:21]} 24. Na3 {[%emt 0:00:03]} b5 {[%emt 0:00:13]} 25. Ne2 {[%emt 0:00:38]} Be4 {[%emt 0:00:05]} 26. f3 {[%emt 0:00:49]} Bxc2 {[%emt 0:00:04]} 27. Rxc2 {[%emt 0:00:02]} Rd3 {[%emt 0:00:13]} 28. Kf2 {[%emt 0:00:13]} Bxb2 {[%emt 0:00:16]} 29. Nxc4 {[%emt 0:00:02]} bxc4 {[%emt 0:00:04]} 30. Rxb2 {[%emt 0:00:01]} g6 {[%emt 0:00:04]} 31. Nf4 {[%emt 0:00:10]} Rd8 {[%emt 0:00:13]} 32. Rc2 {[%emt 0:00:06]} a5 {[%emt 0:00:33]} 33. e4 {[%emt 0:00:17]} a4 {[%emt 0:00:16]} 34. Nd5 {[%emt 0:00:04]} Rb8 {[%emt 0:00:24]} 35. Ne3 {[%emt 0:00:14]} a3 {[%emt 0:00:06]} 36. Rxc4 {[%emt 0:00:21]} Rb2+ {[%emt 0:00:03]} 37. Ke1 {[%emt 0:00:07]} Rxc4 {[%emt 0:00:01]} 38. Nxc4 {[%emt 0:00:01]} Rxa2 {[%emt 0:00:01]} 39. Kd1 {[%emt 0:00:07]} Ra1+ {[%emt 0:00:20]} 40. Kc2 {[%emt 0:00:06]} a2 {[%emt 0:00:01]} 41. Kb2 {[%emt 0:00:04]} Rc1 {[%emt 0:00:02]} 42. Kxa2 {[%emt 0:00:03]} Rxc4 {[%emt 0:00:01]} 43. Kb3 {[%emt 0:00:02]} Rc8 {[%emt 0:00:02]} 44. g3 {[%emt 0:00:03]} Kg7 {[%emt 0:00:01]} 45. f4 {[%emt 0:00:01]} Kf6 {[%emt 0:00:00]} 46. g4 {[%emt 0:00:02]} Re8 {[%emt 0:00:03]} 47. e5+ {[%emt 0:00:01]} Ke6 {[%emt 0:00:01]} 48. Kc4 {[%emt 0:00:02]} Rd8 {[%emt 0:00:01]} 49. Kc5 {[%emt 0:00:07]} h5 {[%emt 0:00:03]} 50. Kc4 {[%emt 0:00:04]} f6 {[%emt 0:00:10]} 51. exf6 {[%emt 0:00:05]} Kxf6 {[%emt 0:00:01]} 52. Kc5 {[%emt 0:00:01]} hxg4 {[%emt 0:00:02]} 53. hxg4 {[%emt 0:00:01]} g5 {[%emt 0:00:08]} 54. f5 {[%emt 0:00:02]} Rh8 {[%emt 0:00:02]} 55. Kd4 {[%emt 0:00:02]} Rh4 {[%emt 0:00:01]} 56. Ke4 {[%emt 0:00:01]} Rxg4+ {[%emt 0:00:01]} 57. Kf3 {[%emt 0:00:01]} Kxf5 {[%emt 0:00:01]} 58. Ke3 {[%emt 0:00:02]} Re4+ {[%emt 0:00:02]} 59. Kf3 {[%emt 0:00:01]} g4+ {[%emt 0:00:01]} 60. Kg3 {[%emt 0:00:01]} Re3+ {[%emt 0:00:01]} 61. Kf2 {[%emt 0:00:01]} Kf4 {[%emt 0:00:01]} 62. Kg2 {[%emt 0:00:01]} g3 {[%emt 0:00:02]} 63. Kf1 {[%emt 0:00:01]} Kf3 {[%emt 0:00:02]} 64. Kg1 {[%emt 0:00:01]} Re1# {[%emt 0:00:02]} 0-1

[Event "2nd FIDE WCC Rapid G10"]
[Site "Minsk"]
[Date "2018.06.23"]
[Round "7"]
[White "Edithso, Samantha"]
[Black "Shukhman, Anna"]
[Result "1-0"]
[ECO "B43"]
[WhiteElo "1714"]
[BlackElo "1577"]
[Annotator "NA"]
[PlyCount "99"]
[EventDate "2018.06.22"]
[EventType "rapid"]
[EventCountry "BLR"]
[SourceTitle "playchess.com"]
[Source "ChessBase"]
[SourceQuality "1"]
[TimeControl "600+5"]

1. e4 {[%emt 0:00:00]} c5 {[%emt 0:00:01]} 2. Nf3 {[%emt 0:00:00]} e6 {[%emt 0:00:01]} 3. d4 {[%emt 0:00:00]} cxd4 {[%emt 0:00:00]} 4. Nxd4 {[%emt 0:00:01]} a6 {[%emt 0:00:01]} 5. Nc3 {[%emt 0:00:03]} Qc7 {[%emt 0:00:01]} 6. Bd3 {[%emt 0:00:03]} b5 {[%emt 0:00:01]} 7. O-O {[%emt 0:00:13]} Bb7 {[%emt 0:00:01]} 8. Be3 {[%emt 0:00:06]} Nf6 {[%emt 0:00:03]} 9. f3 {[%emt 0:00:10]} Bc5 {[%emt 0:00:45]} 10. Bf2 {[%emt 0:00:13]} O-O {[%emt 0:00:17]} 11. Kh1 {[%emt 0:00:13]} Qb6 {[%emt 0:00:47]} 12. e5 {[%emt 0:00:37]} Nd5 {[%emt 0:00:06]} 13. Nxd5 {[%emt 0:00:14]} Bxd5 {[%emt 0:00:03]} 14. b4 {[%emt 0:00:08]} Bxd4 {[%emt 0:00:44]} 15. Bxd4 {[%emt 0:00:02]} Qc7 {[%emt 0:00:00]} 16. Bc5 {[%emt 0:00:03]} Re8 {[%emt 0:00:05]} 17. Bd6 {[%emt 0:00:14]} Qb7 {[%emt 0:00:08]} 18. Qe2 {[%emt 0:00:12]} Nc6 {[%emt 0:00:24]} 19. a3 {[%emt 0:00:32]} Rac8 {[%emt 0:00:29]} 20. a4 {[%emt 0:00:14]} Bc4 {[%emt 0:00:40]} 21. axb5 {[%emt 0:00:33]} axb5 {[%emt 0:00:28]} 22. Bxc4 {[%emt 0:00:27]} bxc4 {[%emt 0:00:01]} 23. c3 {[%emt 0:00:02]} Ra8 {[%emt 0:00:02]} 24. Qxc4 {[%emt 0:00:06]} Rec8 {[%emt 0:00:12]} 25. Qb3 {[%emt 0:00:12]} Na5 {[%emt 0:00:34]} 26. Qd1 {[%emt 0:01:08]} Nc4 {[%emt 0:00:14]} 27. Rxa8 {[%emt 0:00:11]} Rxa8 {[%emt 0:00:09]} 28. Bc5 {[%emt 0:00:14]} Nxe5 {[%emt 0:00:19]} 29. h3 {[%emt 0:00:31]} h6 {[%emt 0:00:11]} 30. Qd4 {[%emt 0:00:09]} Qb5 {[%emt 0:01:31]} 31. Rd1 {[%emt 0:00:26]} Qe2 {[%emt 0:00:12]} 32. Qd2 {[%emt 0:00:40]} Qc4 {[%emt 0:01:00]} 33. Qe3 {[%emt 0:00:44]} Ng6 {[%emt 0:00:46]} 34. Qd3 {[%emt 0:00:20]} Qa2 {[%emt 0:00:19]} 35. Qxd7 {[%emt 0:00:18]} Nf4 {[%emt 0:00:09]} 36. Qd2 {[%emt 0:00:14]} Qc4 {[%emt 0:00:02]} 37. Qc2 {[%emt 0:00:27]} g6 {[%emt 0:00:53]} 38. Qe4 {[%emt 0:00:04]} Qb3 {[%emt 0:00:05]} 39. Qxa8+ {[%emt 0:00:02]} Kh7 {[%emt 0:00:03]} 40. Qa1 {[%emt 0:00:08]} Qc2 {[%emt 0:00:07]} 41. Rg1 {[%emt 0:00:34]} Qf5 {[%emt 0:00:30]} 42. Qb1 {[%emt 0:00:38]} Qh5 {[%emt 0:00:02]} 43. Kh2 {[%emt 0:00:13]} Ne2 {[%emt 0:00:32]} 44. Qe4 {[%emt 0:00:19]} Nxc3 {[%emt 0:00:18]} 45. Qf4 {[%emt 0:00:18]} Kg8 {[%emt 0:00:22]} 46. Ra1 {[%emt 0:00:10]} Qd5 {[%emt 0:00:03]} 47. Qb8+ {[%emt 0:00:06]} Kh7 {[%emt 0:00:12]} 48. Ra8 {[%emt 0:00:08]} Qe5+ {[%emt 0:00:02]} 49. Qxe5 {[%emt 0:00:02]} Nd5 {[%emt 0:00:03]} 50. Qh8# {[%emt 0:00:02]} 1-0